bitfinex/quotes_ETHUSD_20220213
["timestamp","ask_amount","ask_price","bid_price","bid_amount"]
[1644715001152,1.03873388,2935.0,2934.5,0.87761108]
[1644715001951,1.03873388,2935.0,2934.4,0.1703]
[1644715002152,1.03873388,2935.0,2934.5,0.136342]
[1644715002352,1.03873388,2935.0,2934.4,0.34716289]
[1644715003356,1.03873388,2935.0,2934.4,0.34239129]
[1644715003556,1.03873388,2935.0,2934.4,0.35274915]
[1644715004203,1.03873388,2935.0,2934.5,1.05102372]
[1644715004701,1.03873388,2935.0,2934.5,1.22311501]
[1644715005602,0.1703,2935.7,2934.5,1.22311501]
[1644715005806,0.01035545,2935.1,2934.5,1.22311501]
[1644715006806,0.1703,2935.7,2934.5,1.22311501]
[1644715007009,1.44943498,2935.6,2934.5,1.22311501]
[1644715007307,0.01035555,2935.1,2934.5,1.22311501]
[1644715008152,1.19427073,2935.3,2934.5,1.22311501]
[1644715008357,0.01035555,2935.1,2934.5,1.22311501]
[1644715009351,1.19427073,2935.3,2934.5,1.22311501]
[1644715009553,0.009169,2935.1,2934.6,0.17036]
[1644715010160,0.009169,2935.1,2934.7,0.1703]
[1644715010356,0.009169,2935.1,2934.7,0.6593]
[1644715010556,9.1219,2935.9,2934.8,3.5]
[1644715010755,1.44914513,2935.8,2935.6,0.86627973]
[1644715010960,1.44914513,2935.7,2935.6,0.86627973]
[1644715011201,1.44914513,2935.9,2935.6,1.16627973]
[1644715011402,1.44905015,2935.8,2935.6,0.3]
[1644715011603,1.44905015,2935.7,2935.6,0.3]
[1644715011804,1.44905015,2935.7,2935.4,0.4703]
[1644715012000,2.4013,2936.1,2935.4,0.4703]
[1644715012203,0.00559148,2935.8,2935.4,0.4703]
[1644715012400,1.44905677,2935.7,2935.4,3.63687782]
[1644715012604,1.44905677,2935.7,2935.4,4.78744048]
[1644715012807,1.44905677,2935.7,2935.5,1.1703]
[1644715013007,2.4013,2936.1,2935.6,3.16745137]
[1644715013207,0.00559148,2935.7,2935.6,3.16745137]
[1644715014206,9.7323,2936.5,2935.6,3.16745137]
[1644715014406,0.01035482,2935.8,2935.7,0.489]
[1644715014806,0.01035482,2935.8,2935.7,0.789]
[1644715015252,0.99538929,2936.3,2935.7,0.789]
[1644715015451,1.4489729,2936.2,2935.7,0.789]
[1644715015751,0.01035466,2935.9,2935.7,0.789]
[1644715016257,0.01035466,2935.9,2935.8,3.10458257]
[1644715016452,0.99538929,2936.3,2935.8,3.10723192]
[1644715016655,1.44896766,2936.2,2935.8,3.13441028]
[1644715016852,0.00972717,2935.9,2935.7,0.789]
[1644715017154,0.00972717,2935.9,2935.8,3.08128834]
[1644715017452,0.00972717,2935.9,2935.7,0.789]
[1644715017856,0.99538929,2936.3,2935.7,0.489]
[1644715018060,1.12861688,2935.8,2935.7,0.489]
[1644715018259,2.57766658,2935.8,2935.5,1.0]
[1644715018556,1.4490497,2935.7,2935.5,1.0]
[1644715019203,0.00972749,2935.7,2935.5,1.0]
[1644715019600,0.00972749,2935.7,2935.5,1.6]
[1644715020200,0.1703,2936.2,2935.5,1.6]
[1644715020402,0.00972749,2935.7,2935.5,1.6]
[1644715020599,0.00972749,2935.7,2935.5,2.61916273]
[1644715021406,1.07858844,2936.0,2935.5,2.61916273]
[1644715021602,0.00978199,2935.7,2935.5,1.6]
[1644715022453,0.00978199,2935.7,2935.5,2.50988058]
[1644715022661,1.07858844,2936.0,2935.6,3.14920091]
[1644715022856,0.00978199,2935.7,2935.5,2.68019058]
[1644715023658,0.00978199,2935.7,2935.5,2.50988058]
[1644715023856,1.07858844,2936.0,2935.5,2.50988058]
[1644715024062,0.00978199,2935.7,2935.5,2.50988058]
[1644715024255,0.00978199,2935.7,2935.5,1.6]
[1644715025056,1.07858844,2936.0,2935.5,1.6]
[1644715025256,0.00977679,2935.7,2935.5,1.6]
[1644715025457,0.00977679,2935.7,2935.5,1.736297]
[1644715025856,0.00977679,2935.7,2935.5,1.6]
[1644715027309,1.07858844,2936.0,2935.5,1.6]
[1644715027505,1.44907867,2935.9,2935.5,1.6]
[1644715027707,0.00977679,2935.7,2935.5,1.6]
[1644715028508,1.07858844,2936.0,2935.5,1.6]
[1644715028709,0.00977713,2935.7,2935.5,1.6]
[1644715029706,1.07858844,2936.0,2935.5,1.6]
[1644715029955,0.00977713,2935.7,2935.5,1.6]
[1644715030156,1.44911615,2935.6,2935.5,1.6]
[1644715031157,1.44911615,2935.9,2935.5,1.6]
[1644715031558,1.44911615,2935.9,2935.4,0.489]
[1644715031762,1.44911615,2935.9,2935.2,0.1703]
[1644715031968,1.44911615,2935.9,2934.8,7.6503]
[1644715031969,1.74911615,2935.9,2934.8,7.6503]
[1644715032162,7.24151615,2935.8,2934.8,7.48]
[1644715032363,1.45413558,2935.7,2934.8,7.48]
[1644715032562,1.61941615,2935.6,2934.8,7.48]
[1644715032763,1.61941615,2935.6,2934.8,8.53855686]
[1644715032764,1.1725231,2935.3,2934.8,8.53855686]
[1644715032965,1.44911615,2935.2,2934.8,8.53855686]
[1644715033365,0.1703,2935.6,2934.8,8.53855686]
[1644715033563,0.1703,2935.4,2934.8,8.53855686]
[1644715033816,1.44933332,2935.3,2934.8,8.53855686]
[1644715034016,0.00978328,2935.6,2934.8,8.83855686]
[1644715034216,1.44927663,2935.5,2934.8,8.83855686]
[1644715034416,1.44927663,2935.5,2935.3,0.95035864]
[1644715034816,5.6221,2935.8,2935.3,0.95035864]
[1644715034817,1.44927663,2935.4,2935.3,0.95035864]
[1644715035218,1.44927663,2935.5,2935.3,0.95035864]
[1644715035416,1.44927663,2935.4,2935.3,0.95035864]
[1644715035816,1.44927663,2935.5,2935.3,0.95035864]
[1644715036017,1.44927663,2935.4,2935.3,0.95035864]
[1644715036217,1.44927663,2935.4,2934.8,11.20026283]
[1644715036418,0.00986507,2935.6,2935.0,0.3]
[1644715036617,1.44919624,2935.5,2934.8,11.37235412]
[1644715036818,1.44919624,2935.5,2934.8,11.82720748]
[1644715037222,0.00986472,2935.6,2934.8,12.13381348]
[1644715037451,1.44919624,2935.5,2934.8,12.13381348]
[1644715037657,1.44919624,2935.5,2934.8,12.04869275]
[1644715037858,1.44919624,2935.5,2935.2,1.16265345]
[1644715038459,1.44919624,2935.4,2935.2,1.16265345]
[1644715038659,0.00986507,2935.6,2935.2,1.16265345]
[1644715038858,1.44920194,2935.5,2935.2,1.16265345]
[1644715039658,0.00976082,2935.6,2935.2,1.16265345]
[1644715039962,1.44916126,2935.5,2935.2,1.16265345]
[1644715040759,0.00976082,2935.6,2935.2,1.16265345]
[1644715040958,1.44918539,2935.5,2935.2,1.16265345]
[1644715042014,0.00976082,2935.6,2935.2,1.16265345]
[1644715042214,1.44918769,2935.5,2935.2,1.16265345]
[1644715043917,0.00976779,2935.6,2935.2,1.16265345]
[1644715044117,1.44920703,2935.5,2935.2,1.16265345]
[1644715044317,6.64364559,2935.8,2935.2,1.46265345]
[1644715044516,0.00976779,2935.6,2935.2,1.16265345]
[1644715044716,1.44913903,2935.5,2935.2,1.46265345]
[1644715044958,1.44913903,2935.5,2935.2,1.16265345]
[1644715045556,5.7924,2935.8,2935.2,1.46265345]
[1644715045557,0.00976779,2935.6,2935.2,1.46265345]
[1644715045756,0.00976779,2935.6,2935.2,1.16265345]
[1644715045757,1.44916114,2935.5,2935.2,1.16265345]
[1644715045964,1.44916114,2935.5,2935.2,1.46265345]
[1644715046159,0.00976779,2935.6,2935.2,1.16265345]
[1644715046358,1.44914471,2935.5,2935.2,1.46265345]
[1644715046559,5.7924,2935.8,2935.2,1.16265345]
[1644715046760,0.00976741,2935.6,2935.2,1.46265345]
[1644715046959,1.44914124,2935.5,2935.2,1.16265345]
[1644715047964,0.00976732,2935.6,2935.2,1.16265345]
[1644715048164,1.44915342,2935.5,2935.2,1.16265345]
[1644715048808,1.44915342,2935.5,2935.2,0.3]
[1644715049213,0.00976732,2935.6,2935.2,0.3]
[1644715049414,1.44914856,2935.5,2935.2,0.3]
[1644715049614,1.44914856,2935.5,2935.1,0.1703]
[1644715049815,1.44914856,2935.5,2935.1,0.6593]
[1644715050012,1.44914856,2935.5,2935.1,1.67896477]
[1644715050418,1.44914856,2935.4,2935.1,1.67896477]
[1644715050613,0.00976726,2935.6,2935.1,1.50866477]
[1644715050815,1.44916416,2935.5,2935.1,2.36033477]
[1644715051014,1.44916416,2935.5,2935.1,2.66033477]
[1644715051214,1.44916416,2935.5,2935.2,0.3]
[1644715051414,1.44916416,2935.5,2935.1,2.60881686]
[1644715051614,0.00976726,2935.6,2935.1,2.60881686]
[1644715051814,1.44915624,2935.5,2935.1,2.60881686]
[1644715052214,1.44915624,2935.5,2935.2,0.3]
[1644715052966,1.44915624,2935.4,2935.2,0.3]
[1644715053161,0.00976735,2935.6,2935.2,0.3]
[1644715053361,1.44913769,2935.5,2935.2,0.3]
[1644715053762,1.44913769,2935.5,2935.1,2.30881686]
[1644715053964,1.44913769,2935.4,2935.1,1.50866477]
[1644715054163,0.00976735,2935.6,2935.1,1.50866477]
[1644715054363,1.44916181,2935.5,2935.1,1.50866477]
[1644715054969,1.44916181,2935.5,2935.1,0.489]
[1644715055172,6.55625147,2935.8,2934.4,0.34239129]
[1644715055173,1.44916181,2935.4,2934.4,0.34239129]
[1644715055368,1.44916181,2935.3,2934.6,0.00977044]
[1644715056218,1.44916181,2935.3,2934.5,0.1703]
[1644715056410,1.44916181,2935.3,2934.8,1.0815416]
[1644715058615,1.61946181,2935.5,2934.8,1.0815416]
[1644715058815,1.04304667,2935.3,2934.8,1.0815416]
[1644715059013,1.44916181,2935.2,2934.8,1.0815416]
[1644715059217,1.44916181,2935.2,2934.8,1.3815416]
[1644715059417,0.1703,2935.5,2934.8,1.3815416]
[1644715059617,1.44922801,2935.4,2934.8,1.3815416]
[1644715060261,1.44922801,2935.4,2934.8,2.3815416]
[1644715060662,1.44922801,2935.4,2934.8,2.0815416]
[1644715060865,1.44922801,2935.4,2934.8,1.0815416]
[1644715061267,1.44922801,2935.4,2934.8,1.3815416]
[1644715061467,1.44922801,2935.4,2934.8,1.0815416]
[1644715061670,1.44922801,2935.4,2934.8,1.3815416]
[1644715061868,1.44922801,2935.4,2934.8,1.0815416]
[1644715062068,1.44922801,2935.3,2934.8,1.3815416]
[1644715062270,1.44922801,2935.2,2934.8,1.0815416]
[1644715062469,1.10232075,2935.6,2934.8,1.0815416]
[1644715062670,2.68743737,2935.5,2934.8,1.0815416]
[1644715062869,1.44923737,2935.4,2934.8,1.0815416]
[1644715063474,1.44923737,2935.4,2934.8,1.3815416]
[1644715063715,1.44923737,2935.4,2934.8,1.0815416]
[1644715064511,1.44923737,2935.4,2934.8,1.3815416]
[1644715064710,1.44923737,2935.4,2934.8,1.2178566]
[1644715065112,1.44923737,2935.4,2934.8,1.3815416]
[1644715065311,1.44923737,2935.4,2934.8,1.0815416]
[1644715066913,1.44923737,2935.4,2934.8,1.3815416]
[1644715068459,1.44923737,2935.4,2934.8,1.5178546]
[1644715068663,1.44923737,2935.4,2934.8,2.5178546]
[1644715071313,1.44923737,2935.4,2934.9,1.0]
[1644715071810,1.44923737,2935.4,2934.8,1.5178546]
[1644715072814,1.44923737,2935.4,2934.8,2.5178546]
[1644715073215,1.44923737,2935.4,2934.8,1.5178546]
[1644715074014,1.44923737,2935.4,2934.8,1.3815416]
[1644715075861,1.44923737,2935.4,2934.8,1.5178566]
[1644715076261,1.44771027,2935.4,2934.8,1.2178566]
[1644715079316,1.44771027,2935.4,2934.8,0.136315]
[1644715079513,1.11708855,2935.3,2934.8,0.136315]
[1644715079715,0.81708855,2935.3,2934.8,0.136315]
[1644715079915,0.81708855,2935.4,2934.8,0.136315]
[1644715080115,0.1703,2935.4,2934.8,0.136315]
[1644715081315,1.08074118,2935.1,2934.6,1.01267985]
[1644715081516,1.08074118,2935.1,2934.5,1.0]
[1644715081721,1.08074118,2935.1,2934.6,0.00977011]
[1644715082563,1.08074118,2935.1,2934.3,1.00395148]
[1644715082763,1.08074118,2935.1,2934.6,0.0097697]
[1644715082964,1.25104118,2935.1,2934.6,0.0097697]
[1644715083165,1.08074118,2935.1,2934.6,0.0097697]
[1644715083763,1.08074118,2935.1,2934.5,0.136339]
[1644715083964,1.08074118,2935.1,2934.6,0.0097697]
[1644715084464,1.25104118,2935.1,2934.6,0.0097697]
[1644715085064,1.25104118,2935.1,2934.3,1.00395148]
[1644715085264,1.08074118,2935.1,2934.6,0.0097697]
[1644715086214,1.08074118,2935.1,2934.3,1.00395148]
[1644715086215,1.08074118,2935.1,2934.3,0.00395148]
[1644715086408,1.08074118,2935.1,2934.6,0.0097697]
[1644715086708,2.26124118,2935.1,2934.6,0.0097697]
[1644715087511,2.26124118,2935.1,2934.7,1.02928435]
[1644715087712,1.1805,2935.1,2934.7,1.02928435]
[1644715096214,1.44947903,2935.0,2934.7,1.02928435]
[1644715104114,1.44947903,2935.0,2934.7,5.55927228]
[1644715104315,1.44947903,2935.0,2934.7,5.85927228]
[1644715104513,6.0314,2935.5,2935.2,1.17928921]
[1644715104714,1.4493224,2935.4,2935.2,1.17928921]
[1644715104978,0.00976652,2935.6,2935.1,0.489]
[1644715104979,1.4493224,2935.3,2935.1,0.97619947]
[1644715105183,1.4493224,2935.2,2935.1,0.97619947]
[1644715105584,1.4493224,2935.5,2935.1,0.97619947]
[1644715105786,1.4493224,2935.4,2935.1,0.97619947]
[1644715105983,1.4493224,2935.3,2935.1,0.97619947]
[1644715106184,1.4493224,2935.2,2935.1,0.97619947]
[1644715107084,1.4493224,2935.5,2935.1,0.97619947]
[1644715107285,0.65655558,2935.6,2935.1,0.97619947]
[1644715107286,1.4493224,2935.4,2935.1,0.97619947]
[1644715107484,1.4493224,2935.3,2935.1,0.97619947]
[1644715107688,1.4493224,2935.2,2935.1,0.97619947]
[1644715108085,2.10587805,2935.6,2935.1,0.97619947]
[1644715108286,1.4493224,2935.5,2935.1,0.97619947]
[1644715109321,0.64678855,2935.6,2935.1,0.97619947]
[1644715109322,1.4493224,2935.4,2935.1,0.97619947]
[1644715109521,1.4493224,2935.3,2935.1,0.97619947]
[1644715109723,1.4493224,2935.2,2935.1,0.97619947]
[1644715109922,1.4493224,2935.5,2935.1,0.97619947]
[1644715110524,1.4493224,2935.4,2935.1,0.97619947]
[1644715110726,1.4493224,2935.3,2935.1,0.97619947]
[1644715110925,1.4493224,2935.2,2935.1,0.97619947]
[1644715111324,1.4493224,2935.5,2935.1,0.97619947]
[1644715111526,1.4493224,2935.4,2935.1,0.97619947]
[1644715111726,5.69678855,2935.7,2935.1,0.97619947]
[1644715111727,1.4493224,2935.3,2935.1,0.97619947]
[1644715111926,1.4493224,2935.2,2935.1,0.97619947]
[1644715112327,0.00976701,2935.6,2935.1,0.97619947]
[1644715112328,1.4493224,2935.5,2935.1,0.97619947]
[1644715112559,0.00976701,2935.6,2935.1,0.97619947]
[1644715112560,1.4493224,2935.4,2935.1,0.97619947]
[1644715112758,5.05,2935.7,2935.1,0.97619947]
[1644715112759,1.4493224,2935.3,2935.1,0.97619947]
[1644715112965,1.4493224,2935.2,2935.1,0.97619947]
[1644715113160,1.4493224,2935.2,2935.1,0.12233823]
[1644715113362,1.4493224,2935.5,2935.1,0.12233823]
[1644715113560,1.4493224,2935.5,2935.0,3.09195358]
[1644715113761,1.4493224,2935.5,2934.9,4.23115925]
[1644715113963,1.4493224,2935.2,2934.9,4.20137845]
[1644715114163,1.4493224,2935.1,2935.0,1.0]
[1644715114362,1.4493224,2935.1,2935.0,1.98099173]
[1644715114564,1.4493224,2935.5,2935.0,1.98099173]
[1644715114762,1.4493224,2935.4,2935.0,0.98099173]
[1644715114961,0.00976718,2935.6,2935.0,1.98099173]
[1644715114962,1.4493224,2935.3,2935.0,1.98099173]
[1644715115163,1.4493224,2935.2,2935.0,1.98099173]
[1644715115362,1.4493224,2935.1,2935.0,1.98099173]
[1644715115567,1.4493224,2935.5,2935.0,1.98099173]
[1644715115762,1.4493224,2935.4,2935.0,1.98099173]
[1644715115962,1.4493224,2935.3,2935.0,1.98099173]
[1644715116217,1.4493224,2935.2,2935.0,1.98099173]
[1644715116408,1.4493224,2935.1,2935.0,1.98099173]
[1644715116609,1.45908941,2935.6,2935.0,5.02260804]
[1644715116809,1.4493224,2935.5,2935.0,5.02260804]
[1644715117418,1.4493224,2935.5,2935.0,1.98099173]
[1644715117614,1.4493224,2935.4,2935.0,5.02953176]
[1644715117813,1.4493224,2935.3,2935.0,0.98099173]
[1644715118013,1.4493224,2935.2,2935.0,0.98099173]
[1644715118221,1.4493224,2935.1,2935.0,0.98099173]
[1644715118813,1.4493224,2935.6,2935.0,4.03464934]
[1644715119014,1.45908925,2935.6,2935.0,4.03464934]
[1644715119215,1.4493224,2935.5,2935.0,0.98099173]
[1644715119817,1.4493224,2935.5,2934.9,3.3978715]
[1644715120060,1.4493224,2935.4,2934.9,3.3978715]
[1644715120357,4.8797,2935.7,2934.9,3.3978715]
[1644715120358,1.4493224,2935.3,2935.0,1.0]
[1644715120864,0.00976719,2935.6,2934.9,0.306623]
[1644715120865,1.4493224,2935.2,2934.9,1.47333951]
[1644715121061,1.4493224,2935.1,2934.9,1.47333951]
[1644715121262,0.00976702,2935.6,2934.9,4.54512511]
[1644715121462,1.44925997,2935.5,2934.9,1.30303951]
[1644715121663,1.44925997,2935.5,2935.0,1.0]
[1644715121863,1.44925997,2935.5,2934.9,4.35729467]
[1644715122264,1.44925997,2935.5,2935.0,1.0]
[1644715122465,1.44925997,2935.4,2935.0,1.0]
[1644715122667,1.44925997,2935.3,2935.0,1.0]
[1644715122867,1.44925997,2935.2,2935.0,1.0]
[1644715123066,1.44925997,2935.1,2935.0,1.0]
[1644715123726,1.44925997,2935.1,2935.0,3.37450256]
[1644715123915,0.00976684,2935.6,2935.0,5.37444256]
[1644715124112,0.00976684,2935.6,2935.1,1.87333]
[1644715124311,1.44907071,2935.5,2935.2,4.64729871]
[1644715124514,0.00976684,2935.6,2935.2,11.23239]
[1644715124713,0.00331336,2935.8,2935.5,1.11797782]
[1644715124914,1.45232908,2936.1,2935.6,0.489]
[1644715125915,1.45232908,2936.1,2935.6,1.489]
[1644715126119,0.00976682,2936.0,2935.6,1.489]
[1644715126315,1.44901572,2935.9,2935.6,1.489]
[1644715126815,1.44901572,2935.9,2935.6,4.889]
[1644715127215,1.44901572,2935.8,2935.6,4.889]
[1644715127465,1.44751923,2935.7,2935.6,4.889]
[1644715127671,0.00976698,2935.9,2935.6,7.97211518]
[1644715128371,0.00331336,2936.1,2935.6,7.97211518]
[1644715128574,0.00976698,2935.9,2935.6,5.189]
[1644715128775,0.00976698,2935.9,2935.6,8.02443938]
[1644715128971,0.00976698,2935.9,2935.6,8.03500061]
[1644715129573,0.00331336,2936.1,2935.6,4.889]
[1644715129782,0.00976694,2935.9,2935.6,4.889]
[1644715130575,0.00976694,2935.9,2935.6,8.04614503]
[1644715130775,0.00331336,2936.1,2935.6,4.889]
[1644715130975,0.00976694,2935.9,2935.6,8.3218728]
[1644715131220,0.00976694,2935.9,2935.6,8.23492603]
[1644715131814,0.00331336,2936.1,2935.6,8.23492603]
[1644715132315,0.00976694,2935.9,2935.7,0.85151]
[1644715133117,0.00331336,2936.1,2935.7,0.85151]
[1644715133318,0.00976686,2935.9,2935.8,3.13393668]
[1644715133718,0.00976686,2935.9,2935.8,4.13393668]
[1644715134323,0.00331336,2936.1,2936.0,0.98611375]
[1644715134523,0.55942184,2935.9,2935.8,5.07654819]
[1644715135367,0.55942184,2935.9,2935.8,5.56554819]
[1644715136367,0.55942184,2935.9,2935.8,5.70182719]
[1644715136767,0.55942184,2935.9,2935.8,2.56789051]
[1644715137370,0.55942184,2935.9,2935.8,5.65234583]
[1644715137774,0.55942184,2935.9,2935.8,2.56789051]
[1644715137975,0.55942184,2935.9,2935.8,1.625279]
[1644715138377,0.00976677,2936.0,2935.9,4.15]
[1644715138579,0.00976677,2936.0,2935.9,8.139]
[1644715138829,0.1703,2936.6,2936.0,2.35]
[1644715139030,0.00332775,2936.5,2936.2,6.113]
[1644715139232,0.1703,2936.6,2936.3,0.489]
[1644715139436,0.00332775,2936.5,2936.4,1.03123215]
[1644715139628,0.1703,2936.6,2936.4,1.52023215]
[1644715139831,0.1703,2936.6,2936.4,2.12023215]
[1644715140433,0.1703,2936.6,2936.4,1.82023215]
[1644715140632,0.17530424,2936.6,2936.4,2.12023215]
[1644715140833,0.17530424,2936.6,2936.5,3.06663364]
[1644715141033,0.00500424,2936.6,2936.5,3.55563364]
[1644715141429,0.17342775,2937.3,2936.5,3.55563364]
[1644715141835,0.17342775,2937.3,2936.5,3.72573364]
[1644715141836,0.00500424,2936.7,2936.5,3.72573364]
[1644715142132,0.00500424,2936.7,2936.6,3.23350667]
[1644715142333,0.00500424,2936.7,2936.6,3.72250667]
[1644715142564,0.00500424,2936.7,2936.6,0.489]
[1644715142764,0.17342775,2937.3,2936.6,0.489]
[1644715142967,0.00977502,2936.8,2936.6,0.489]
[1644715143966,0.17342775,2937.3,2936.6,0.489]
[1644715144166,0.01002575,2936.8,2936.6,0.489]
[1644715144372,0.01002575,2936.8,2936.7,3.14531394]
[1644715144566,0.01002575,2936.8,2936.7,0.489]
[1644715144969,0.01002575,2936.8,2936.7,4.12116408]
[1644715145168,0.17342775,2937.3,2936.7,4.42116408]
[1644715145472,0.01002567,2936.9,2936.7,4.42116408]
[1644715145668,0.01002567,2936.9,2936.8,3.1288367]
[1644715145868,0.01002567,2936.9,2936.8,3.6178367]
[1644715146310,1.05962485,2937.6,2936.9,1.16870324]
[1644715146512,1.05962485,2937.6,2937.0,3.55922968]
[1644715146711,0.00332775,2937.6,2937.0,0.789]
[1644715146915,0.00332775,2937.6,2937.0,3.54596869]
[1644715147115,0.00332775,2937.6,2937.0,0.789]
[1644715147316,0.00332775,2937.6,2937.0,3.55216307]
[1644715147520,1.45176065,2937.6,2937.0,0.489]
[1644715147719,0.00974951,2937.4,2937.0,0.489]
[1644715147917,1.4484329,2937.3,2937.0,0.489]
[1644715148420,1.4484329,2937.3,2937.0,3.59735925]
[1644715148718,1.4484329,2937.3,2937.0,3.55728312]
[1644715148919,1.4484329,2937.2,2937.0,0.489]
[1644715149120,0.00974975,2937.3,2937.0,0.489]
[1644715149818,0.00974975,2937.3,2937.0,3.889]
[1644715150065,1.06244522,2937.6,2937.1,3.24327628]
[1644715150363,1.06244522,2937.6,2937.1,3.55814655]
[1644715150364,0.00974975,2937.3,2937.1,3.55814655]
[1644715150563,0.00974975,2937.3,2937.1,0.489]
[1644715150764,0.00974975,2937.3,2937.1,3.91169656]
[1644715151165,0.00332775,2937.6,2937.1,3.91169656]
[1644715151364,0.00976808,2937.3,2937.1,3.91169656]
[1644715151765,0.00976808,2937.3,2937.1,4.21169656]
[1644715152469,0.00976808,2937.3,2937.2,3.04688905]
[1644715153470,0.00332775,2938.0,2937.2,3.04688905]
[1644715153710,1.45160742,2938.0,2937.4,1.16617533]
[1644715154314,1.45160742,2938.0,2937.2,3.04688905]
[1644715154510,1.45160742,2938.0,2937.1,1.089]
[1644715154910,1.45160742,2938.0,2937.1,4.24154681]
[1644715155112,0.00976619,2937.7,2937.1,3.94154681]
[1644715155312,1.44827967,2937.6,2937.1,3.94154681]
[1644715155513,0.00332775,2937.5,2937.2,0.88818404]
[1644715155711,1.44827967,2937.6,2937.2,0.88818404]
[1644715155913,0.00332775,2937.5,2937.2,0.88818404]
[1644715156113,4.7466,2938.1,2937.2,0.88818404]
[1644715156114,1.45160742,2938.0,2937.2,0.88818404]
[1644715156312,0.01309435,2937.5,2937.1,1.089]
[1644715156515,0.0097666,2937.5,2937.1,1.089]
[1644715157112,0.00332775,2937.9,2937.1,1.089]
[1644715157319,0.00976668,2937.4,2937.1,1.2591]
[1644715157568,0.00976668,2937.4,2937.1,2.41310002]
[1644715157766,0.00976668,2937.4,2937.1,1.2591]
[1644715158366,0.00332775,2937.9,2937.1,1.2591]
[1644715158568,0.00976684,2937.4,2937.1,1.2591]
[1644715159569,0.00332775,2937.6,2937.1,1.2591]
[1644715159874,0.00976684,2937.4,2937.1,1.2591]
[1644715160671,0.00332775,2937.6,2937.1,1.2591]
[1644715160872,0.00332775,2937.6,2937.4,0.00132573]
[1644715161070,0.89995919,2937.7,2937.4,0.00132573]
[1644715162110,0.90972554,2937.7,2937.4,0.00132573]
[1644715163116,0.89995919,2937.7,2937.4,0.00132573]
[1644715163316,0.90972554,2937.7,2937.4,0.00132573]
[1644715164320,1.07005919,2937.7,2937.4,0.00132573]
[1644715164715,1.07982554,2937.7,2937.4,0.00132573]
[1644715165182,1.44833005,2937.6,2937.4,2.573e-05]
[1644715165379,4.15,2937.4,2937.0,0.13872573]
[1644715165579,1.61843005,2937.3,2937.0,0.13872573]
[1644715165774,1.44833005,2937.2,2937.0,0.13872573]
[1644715165974,0.1701,2937.1,2937.0,0.13872573]
[1644715166175,2.65700747,2937.1,2937.0,0.13872573]
[1644715166376,2.48690747,2937.1,2937.0,0.13872573]
[1644715167977,1.44833005,2937.1,2937.0,0.13872573]
[1644715172017,1.39833005,2937.1,2937.0,0.13872573]
[1644715174174,0.00932116,2937.2,2937.0,0.13872573]
[1644715175182,1.50772775,2937.3,2937.0,0.13872573]
[1644715175377,0.00932109,2937.2,2937.0,0.13872573]
[1644715176331,1.67782775,2937.3,2937.0,0.13872573]
[1644715176532,0.00922203,2937.2,2937.0,0.13872573]
[1644715177631,1.67782775,2937.3,2937.0,0.13872573]
[1644715177830,0.00922203,2937.2,2937.0,0.13872573]
[1644715178832,1.67782775,2937.3,2937.0,0.13872573]
[1644715179034,0.00922203,2937.2,2937.0,0.13872573]
[1644715179965,1.67782775,2937.3,2937.0,0.13872573]
[1644715180164,0.00923203,2937.2,2937.0,0.13872573]
[1644715181266,0.27745145,2936.7,2936.2,1.10225918]
[1644715182672,0.00923296,2936.6,2936.2,1.10225918]
[1644715183071,0.00923296,2936.6,2936.3,3.10295012]
[1644715183378,0.00923296,2936.6,2936.4,2.34031]
[1644715183571,0.27745145,2936.7,2936.5,3.39133247]
[1644715183827,0.00923197,2936.6,2936.5,3.39133247]
[1644715184024,0.00332775,2937.5,2936.6,4.05]
[1644715184228,0.00332775,2937.5,2937.4,1.08193498]
[1644715184426,0.00332775,2937.6,2937.4,1.08193498]
[1644715184626,5.7205,2937.9,2937.4,1.08193498]
[1644715184825,0.00332775,2937.8,2937.4,1.08193498]
[1644715185226,5.7205,2937.9,2937.4,1.08193498]
[1644715185430,0.00332775,2937.8,2937.4,1.08193498]
[1644715186326,6.36728855,2937.9,2937.4,1.08193498]
[1644715187328,0.01035939,2937.8,2937.4,1.08193498]
[1644715187569,0.01368714,2937.8,2937.4,1.08193498]
[1644715188368,0.00333494,2937.8,2937.4,1.08193498]
[1644715188573,0.00972669,2937.7,2937.4,1.08193498]
[1644715189573,0.00333494,2937.8,2937.4,1.08193498]
[1644715189771,5.68418714,2937.9,2937.4,1.08193498]
[1644715190073,0.00333494,2937.8,2937.4,1.08193498]
[1644715190269,5.68418714,2937.9,2937.4,1.08193498]
[1644715190471,0.00333494,2937.8,2937.3,0.17021]
[1644715192119,1.4515337,2937.8,2937.3,0.17021]
[1644715193023,1.4515337,2937.8,2937.3,0.47021]
[1644715193224,1.4515337,2937.8,2937.4,3.04385766]
[1644715193425,1.4515337,2937.8,2937.3,0.17021]
[1644715193822,1.4515337,2937.8,2937.3,3.57021]
[1644715195869,1.4515337,2937.8,2937.3,3.87021]
[1644715196174,1.4515337,2937.8,2937.3,4.17021]
[1644715196770,1.4515337,2937.8,2937.4,3.05653526]
[1644715200214,1.4015337,2937.8,2937.4,3.65653526]
[1644715200415,1.4015337,2937.8,2937.7,0.98117727]
[1644715200721,0.01036456,2937.9,2937.7,5.3281676]
[1644715200916,0.1701,2938.6,2937.9,2.22015]
[1644715201118,5.95094789,2938.7,2938.0,3.49708915]
[1644715201318,5.95094789,2938.7,2938.0,0.489]
[1644715201516,5.9095,2938.7,2938.5,1.12989643]
[1644715201717,0.41443145,2938.2,2938.1,3.07213656]
[1644715201918,0.41443145,2938.2,2938.1,3.37213656]
[1644715202117,0.41443145,2938.2,2938.1,0.3]
[1644715202315,0.41443145,2938.2,2938.0,1.45072]
[1644715202575,0.41443145,2938.2,2938.1,0.6591]
[1644715203073,0.41443145,2938.2,2938.1,0.489]
[1644715203979,0.41443145,2938.2,2938.1,1.44129571]
[1644715206224,0.41443145,2938.2,2938.1,4.69618616]
[1644715206823,0.41443145,2938.2,2938.1,3.74389045]
[1644715207023,0.41443145,2938.2,2938.1,0.489]
[1644715207229,0.41443145,2938.2,2937.7,0.01036647]
[1644715207634,0.41443145,2938.2,2937.3,0.38618]
[1644715207635,0.58453145,2938.2,2937.3,0.38618]
[1644715207829,0.58453145,2938.2,2937.7,0.01036609]
[1644715208037,1.19468769,2938.1,2937.7,0.01036609]
[1644715208233,0.1701,2938.0,2937.7,0.01036609]
[1644715208632,0.81688855,2938.0,2937.7,0.01036609]
[1644715208828,0.81688855,2938.0,2937.3,0.13618]
[1644715209133,1.1957,2937.9,2937.7,0.0103659]
[1644715209329,0.4701,2937.8,2937.7,0.0103659]
[1644715209966,0.4701,2937.8,2937.3,0.13618]
[1644715210167,0.4701,2937.8,2937.6,0.01036606]